bitfinex-derivatives/quotes_BTCF0:USTF0_20251125
["timestamp","ask_amount","ask_price","bid_price","bid_amount"]
[1764073960614,0.5556,87628.0,87627.0,0.0287]
[1764073961204,0.0666462,87624.0,87623.0,0.11744342]
[1764073961411,0.4366462,87624.0,87623.0,0.0287]
[1764073961710,0.0675466,87621.0,87620.0,0.08834342]
[1764073962510,0.05613,87621.0,87620.0,0.12715022]
[1764073962822,0.05613,87621.0,87620.0,0.11573342]
[1764073964619,0.0114168,87620.0,87618.0,0.06135342]
[1764073964820,0.067547,87618.0,87617.0,0.08834342]
[1764073965014,0.067547,87618.0,87617.0,0.02699]
[1764073965323,0.067547,87618.0,87612.0,0.06135342]
[1764073965324,0.0675477,87613.0,87612.0,0.06135342]
[1764073965617,0.0675477,87613.0,87601.0,0.08834342]
[1764073965618,0.05613,87602.0,87601.0,0.08834342]
[1764073965921,0.49613,87602.0,87601.0,0.02699]
[1764073966714,0.49613,87602.0,87601.0,0.040923]
[1764073966915,0.0675492,87601.0,87600.0,0.05438]
[1764073967122,0.4475492,87601.0,87600.0,0.05438]
[1764073968013,0.4475492,87601.0,87599.0,0.04090499]
[1764073968225,0.06881,87600.0,87599.0,0.04090499]
[1764073968421,0.0675495,87599.0,87598.0,0.04090499]
[1764073968619,0.4975495,87599.0,87598.0,0.04090499]
[1764073969221,0.4975495,87599.0,87597.0,0.04090499]
[1764073969427,0.0675498,87597.0,87595.0,0.04090499]
[1764073969611,0.05613,87596.0,87594.0,0.04090499]
[1764073969816,0.05613,87592.0,87591.0,0.10670539]
[1764073970326,0.05613,87592.0,87591.0,0.0658004]
[1764073971022,0.05613,87592.0,87591.0,0.05438]
[1764073971423,0.05613,87592.0,87591.0,0.09524319]
[1764073973314,0.05613,87592.0,87591.0,0.05438]
[1764073975030,0.05613,87592.0,87591.0,0.09524319]
[1764073975419,0.07184,87605.0,87604.0,0.05438]
[1764073975729,0.05613,87593.0,87591.0,0.04086319]
[1764073975928,0.05613,87593.0,87589.0,0.00014112]
[1764073975929,0.0675505,87591.0,87590.0,0.06782746]
[1764073976120,0.0675505,87591.0,87590.0,0.10693746]
[1764073976121,0.05613,87591.0,87590.0,0.10693746]
[1764073976321,0.02835,87591.0,87590.0,0.10693746]
[1764073976527,0.05613,87591.0,87590.0,0.10693746]
[1764073976931,0.02835,87591.0,87590.0,0.10693746]
[1764073977132,0.57184,87605.0,87604.0,0.05438]
[1764073977329,0.94613,87605.0,87604.0,0.05438]
[1764073979828,0.94613,87605.0,87604.0,0.02699]
[1764073980032,0.04823,87595.0,87594.0,0.06107]
[1764073980223,0.05965,87595.0,87594.0,0.06107]
[1764073980530,0.05965,87595.0,87594.0,0.02273]
[1764073980917,0.05965,87595.0,87594.0,0.04531]
[1764073981130,0.05964,87606.0,87605.0,0.04531]
[1764073981329,0.5110586,87606.0,87605.0,0.04531]
[1764073981630,0.04823,87598.0,87597.0,0.04531]
[1764073982136,0.54823,87598.0,87597.0,0.04531]
[1764073984734,0.5,87598.0,87597.0,0.04531]
[1764073985234,0.54823,87598.0,87597.0,0.04531]
[1764073986325,0.5,87598.0,87597.0,0.04531]
[1764073986524,0.54823,87598.0,87597.0,0.04531]
[1764073990332,0.5596496,87598.0,87597.0,0.04531]
[1764073990530,0.04823,87596.0,87595.0,0.04083746]
[1764073990736,0.04823,87596.0,87595.0,0.06356746]
[1764073991030,0.04823,87596.0,87595.0,0.04531]
[1764073991430,0.04689,87592.0,87591.0,0.10928342]
[1764073992336,0.04689,87592.0,87591.0,0.04793]
[1764073992531,0.04689,87592.0,87591.0,0.1093104]
[1764073993431,0.04689,87592.0,87591.0,0.04793]
[1764073996934,0.04689,87592.0,87590.0,0.0114207]
[1764073996935,0.04689,87603.0,87600.0,0.0201293]
[1764073997141,0.04689,87603.0,87602.0,0.04793]
[1764073997636,0.04689,87603.0,87601.0,0.06152287]
[1764073997841,0.0583091,87602.0,87601.0,0.06152287]
[1764073998044,0.4383091,87602.0,87601.0,0.06152287]
[1764073999140,0.9383091,87602.0,87601.0,0.06152287]
[1764073999539,0.9383091,87602.0,87601.0,0.08531287]
[1764073999842,0.9383091,87602.0,87601.0,0.10945287]
[1764074000043,0.92689,87602.0,87601.0,0.12087207]
[1764074000343,0.9383091,87602.0,87601.0,0.10945287]
[1764074000729,0.9383091,87602.0,87601.0,0.06152287]
[1764074001049,0.0583095,87599.0,87598.0,0.06152287]
[1764074001246,0.0719202,87594.0,87593.0,0.06152287]
[1764074001444,0.0583104,87592.0,87591.0,0.06152287]
[1764074001744,0.04689,87591.0,87590.0,0.06152287]
[1764074001930,0.49689,87591.0,87590.0,0.08531287]
[1764074002134,0.04689,87591.0,87590.0,0.04793]
[1764074004035,0.54689,87591.0,87590.0,0.04793]
[1764074004235,0.0583107,87590.0,87589.0,0.00014112]
[1764074004439,0.4983107,87590.0,87589.0,0.00014112]
[1764074006145,0.4983107,87590.0,87589.0,0.06168622]
[1764074006343,0.4983107,87590.0,87589.0,0.00014112]
[1764074007044,0.8983107,87590.0,87589.0,0.00014112]
[1764074007243,0.0583113,87585.0,87584.0,0.0615451]
[1764074007554,0.04689,87584.0,87583.0,0.0615451]
[1764074007741,0.44689,87584.0,87583.0,0.0615451]
[1764074008436,0.44699511,87584.0,87583.0,0.0615451]
[1764074008841,0.04689,87581.0,87580.0,0.0615451]
[1764074009042,0.04689,87580.0,87579.0,0.0615451]
[1764074009240,0.49689,87580.0,87579.0,0.0615451]
[1764074009650,0.5083121,87580.0,87578.0,0.0615451]
[1764074009846,0.49689,87580.0,87579.0,0.0593521]
[1764074010043,0.04689,87580.0,87579.0,0.0593521]
[1764074010253,0.04689,87580.0,87579.0,0.04793]
[1764074010453,0.04689,87580.0,87579.0,0.10942874]
[1764074010746,0.04689,87580.0,87578.0,0.06149874]
[1764074010747,0.0583121,87579.0,87578.0,0.06149874]
[1764074010953,0.4683121,87579.0,87578.0,0.04793]
[1764074011160,0.04689,87572.0,87571.0,0.0593531]
[1764074011343,0.04698122,87572.0,87571.0,0.0593531]
[1764074011844,0.04698122,87572.0,87571.0,0.04793]
[1764074012039,0.47698122,87572.0,87571.0,0.04793]
[1764074013254,0.04689,87562.0,87561.0,0.04793]
[1764074013450,0.04699845,87562.0,87561.0,0.04793]
[1764074014149,0.04689,87554.0,87553.0,0.04793]
[1764074015148,0.00010845,87562.0,87561.0,0.04793]
[1764074015543,0.02332845,87562.0,87561.0,0.04793]
[1764074015855,0.00010845,87562.0,87561.0,0.04793]
[1764074016055,0.04699845,87562.0,87561.0,0.04793]
[1764074016239,0.00010845,87562.0,87561.0,0.04793]
[1764074016445,0.04699845,87562.0,87561.0,0.10933878]
[1764074016752,0.04699845,87562.0,87561.0,0.02379]
[1764074017641,0.04689,87556.0,87555.0,0.04793]
[1764074018348,0.04689,87556.0,87555.0,0.10931691]
[1764074019559,0.04689,87556.0,87555.0,0.04793]
[1764074021250,0.00010845,87562.0,87561.0,0.04581]
[1764074021251,0.04508845,87562.0,87561.0,0.04581]
[1764074022757,0.04508845,87562.0,87561.0,0.08671932]
[1764074023160,0.04508845,87562.0,87561.0,0.04581]
[1764074023457,0.00010845,87562.0,87561.0,0.08671932]
[1764074025264,0.00010845,87562.0,87561.0,0.04581]
[1764074027262,0.00017122,87570.0,87569.0,0.04581]
[1764074027752,1.22e-06,87570.0,87569.0,0.04581]
[1764074027947,1.22e-06,87570.0,87568.0,0.0114235]
[1764074027948,0.04498,87584.0,87583.0,0.0572315]
[1764074028152,0.04504134,87584.0,87583.0,0.04581]
[1764074029354,0.04504134,87584.0,87583.0,0.08669941]
[1764074030062,0.04604134,87584.0,87583.0,0.08669941]
[1764074030267,0.04704134,87584.0,87583.0,0.04581]
[1764074030654,0.04704134,87584.0,87583.0,0.08671668]
[1764074030850,0.04704134,87584.0,87583.0,0.04581]
[1764074033966,0.02517134,87584.0,87583.0,0.04581]
[1764074034269,0.02517134,87584.0,87583.0,0.08671668]
[1764074034455,0.04704134,87584.0,87583.0,0.08671668]
[1764074038871,0.04704134,87584.0,87583.0,0.09813828]
[1764074039369,0.04704134,87584.0,87583.0,0.04581]
[1764074040060,0.04704134,87584.0,87583.0,0.02283]
[1764074040256,0.0557218,87581.0,87577.0,0.04090668]
[1764074040467,0.0557222,87578.0,87577.0,0.02121]
[1764074040871,0.0557222,87578.0,87575.0,0.00017132]
[1764074040872,0.0114225,87576.0,87575.0,0.00017132]
[1764074041170,0.4696525,87576.0,87575.0,0.00017132]
[1764074041763,0.02306,87569.0,87568.0,0.04093772]
[1764074041963,0.02306,87569.0,87566.0,0.04093772]
[1764074041964,0.0443,87567.0,87566.0,0.04093772]
[1764074042162,0.0443,87567.0,87565.0,0.04093772]
[1764074042163,0.0557238,87566.0,87565.0,0.04093772]
[1764074042472,0.05578514,87566.0,87565.0,0.04093772]
[1764074042771,0.05578514,87566.0,87565.0,0.08502772]
[1764074043162,0.05578514,87566.0,87565.0,0.04093772]
[1764074043365,0.05823,87564.0,87563.0,0.04093772]
[1764074043572,0.0443,87561.0,87560.0,0.06214772]
[1764074043869,0.0443,87561.0,87546.0,0.0137]
[1764074043870,0.0557246,87560.0,87559.0,0.04093772]
[1764074044058,0.0114263,87547.0,87545.0,0.04097529]
[1764074044260,0.0527082,87532.0,87531.0,0.04409]
[1764074044458,0.04134134,87532.0,87531.0,0.04409]
[1764074044673,6.134e-05,87532.0,87531.0,0.04409]
[1764074046167,0.04134134,87532.0,87531.0,0.04409]
[1764074047668,0.02070134,87532.0,87531.0,0.04409]
[1764074048373,0.04134134,87532.0,87531.0,0.04409]
[1764074049168,0.02070134,87532.0,87531.0,0.04409]
[1764074049364,6.134e-05,87532.0,87531.0,0.0555184]
[1764074050375,6.134e-05,87532.0,87531.0,0.04409]
[1764074050568,0.04134134,87532.0,87531.0,0.04409]
[1764074050768,6.134e-05,87532.0,87531.0,0.04409]
[1764074051272,6.134e-05,87532.0,87531.0,0.0555184]
[1764074051673,6.134e-05,87532.0,87531.0,0.04409]
[1764074055374,6.134e-05,87532.0,87531.0,0.0555184]
[1764074055883,6.134e-05,87532.0,87531.0,0.04409]
[1764074056371,0.04134134,87532.0,87531.0,0.04409]
[1764074056982,0.02070134,87532.0,87531.0,0.04409]
[1764074057784,0.04134134,87532.0,87531.0,0.04409]
[1764074065482,0.05276954,87532.0,87531.0,0.04409]
[1764074066984,0.04134134,87532.0,87531.0,0.04409]
[1764074067284,6.134e-05,87532.0,87531.0,0.04409]
[1764074068276,0.04134134,87532.0,87531.0,0.04409]
[1764074069772,6.134e-05,87532.0,87531.0,0.04409]
[1764074071581,6.134e-05,87532.0,87530.0,0.0114285]
[1764074071582,0.011427,87542.0,87540.0,0.01351]
[1764074071780,0.13797058,87550.0,87549.0,0.04397]
[1764074071978,0.0528259,87550.0,87549.0,0.04397]
[1764074072985,0.5528259,87550.0,87549.0,0.04397]
[1764074073980,0.5114259,87550.0,87549.0,0.04397]
[1764074074183,0.5321259,87550.0,87549.0,0.04397]
[1764074074980,0.5528259,87550.0,87549.0,0.04397]
[1764074079689,0.0414,87544.0,87543.0,0.02288]
[1764074079893,0.0528267,87544.0,87543.0,0.02288]
[1764074080781,0.4728267,87544.0,87541.0,0.04110415]
[1764074080987,0.0414,87537.0,87536.0,0.10536042]
[1764074081983,0.0528269,87543.0,87542.0,0.04404]
[1764074083384,0.5528269,87543.0,87542.0,0.04404]
[1764074083588,0.5528269,87543.0,87542.0,0.02142]
[1764074083991,0.5528269,87543.0,87542.0,0.04404]
[1764074084592,0.0528276,87537.0,87536.0,0.10567054]
[1764074085792,0.4528276,87537.0,87536.0,0.04404]
[1764074087089,0.4528276,87537.0,87536.0,0.02142]
[1764074087492,0.0528282,87532.0,87531.0,0.04404]
[1764074087881,0.0414,87531.0,87530.0,0.06163054]
[1764074088092,0.4814,87531.0,87530.0,0.06163054]
[1764074088292,0.0414,87527.0,87526.0,0.0001107]
[1764074088591,0.4314,87527.0,87526.0,0.08317989]
[1764074088798,0.4314,87527.0,87526.0,0.0441507]
[1764074089189,0.4314,87527.0,87526.0,0.10580082]
[1764074089986,0.4314,87527.0,87526.0,0.0441507]
[1764074090186,0.4314,87527.0,87526.0,0.0215307]
[1764074090386,0.4314,87527.0,87526.0,0.0001107]
[1764074091595,0.4314,87527.0,87526.0,0.0441507]
[1764074092091,0.4314,87527.0,87526.0,0.0001107]
[1764074092294,0.4314,87527.0,87526.0,0.06176082]
[1764074092694,0.4314,87527.0,87526.0,0.0001107]
[1764074093694,0.4314,87527.0,87526.0,0.0441507]
[1764074096100,0.4314,87527.0,87526.0,0.0001107]
[1764074096497,0.0528297,87521.0,87520.0,0.06165012]
[1764074096699,0.0528297,87521.0,87520.0,0.08307012]
[1764074097005,0.0528297,87521.0,87520.0,0.10569012]
[1764074097494,0.05292889,87521.0,87520.0,0.04404]
[1764074099202,0.55292889,87521.0,87520.0,0.04404]
[1764074099497,0.0528302,87517.0,87516.0,0.05739]
[1764074099704,0.0529409,87517.0,87516.0,0.05739]
[1764074103607,0.5529409,87517.0,87516.0,0.05739]
[1764074106909,0.9729409,87517.0,87516.0,0.05739]
[1764074107109,0.9729409,87517.0,87516.0,0.08501041]
[1764074107299,0.9729409,87517.0,87516.0,0.04397]
[1764074107501,0.9729409,87517.0,87516.0,0.08501227]
[1764074108402,0.9729409,87517.0,87516.0,0.04397]
[1764074109310,0.0414,87508.0,87507.0,0.06165012]
[1764074109508,0.0528328,87497.0,87496.0,0.10562012]
[1764074109707,0.0529435,87497.0,87496.0,0.04397]
[1764074110210,0.0001107,87497.0,87496.0,0.04397]
[1764074110410,0.0115435,87497.0,87496.0,0.04397]
[1764074110612,0.0115435,87497.0,87496.0,0.10562012]
[1764074111006,0.0115435,87497.0,87496.0,0.04397]
[1764074111606,0.0322435,87497.0,87496.0,0.04397]
[1764074112003,0.0529435,87497.0,87496.0,0.04397]
[1764074112916,0.0322435,87497.0,87496.0,0.04397]
[1764074113218,0.0529435,87497.0,87496.0,0.08500297]
[1764074113516,0.0529435,87497.0,87496.0,0.04397]
[1764074115003,0.4229435,87497.0,87496.0,0.04397]
[1764074117912,0.0415107,87497.0,87496.0,0.04397]
[1764074118116,0.0001107,87497.0,87496.0,0.04397]
[1764074119607,0.09653984,87520.0,87495.0,0.01291]
[1764074119608,0.0114309,87512.0,87511.0,0.04342]
[1764074120105,0.09653984,87530.0,87515.0,0.04342]
[1764074120106,0.02098142,87516.0,87515.0,0.04342]
[1764074120312,0.00017142,87516.0,87515.0,0.04342]
[1764074120913,0.52098142,87516.0,87515.0,0.04342]
[1764074123419,0.54179142,87516.0,87515.0,0.04342]
[1764074126221,0.54179142,87516.0,87515.0,0.05714]
[1764074133030,0.52098142,87516.0,87515.0,0.09815936]
[1764074133217,0.52098142,87516.0,87515.0,0.05714]
[1764074133621,0.50017142,87516.0,87515.0,0.05714]
[1764074134220,0.00017142,87516.0,87515.0,0.05714]
[1764074134424,0.00017142,87516.0,87515.0,0.0685705]
[1764074136421,0.0530485,87530.0,87529.0,0.04342]
[1764074136628,0.02081,87530.0,87529.0,0.04342]
[1764074136922,0.0114262,87548.0,87530.0,0.05714]
[1764074136923,0.0114284,87531.0,87530.0,0.05714]
[1764074137229,0.02081,87531.0,87530.0,0.05714]
[1764074137523,0.04162,87531.0,87530.0,0.09819338]
[1764074138327,0.04162,87531.0,87530.0,0.05714]
[1764074139328,0.54162,87531.0,87530.0,0.05714]
[1764074142325,0.54162,87531.0,87530.0,0.02233]
[1764074142529,0.0530493,87524.0,87523.0,0.04105338]
[1764074142721,0.04162,87523.0,87522.0,0.02168142]
[1764074144623,0.04162,87523.0,87522.0,0.04320142]
[1764074145425,0.04162,87523.0,87522.0,0.05715142]
[1764074148920,0.04162,87523.0,87522.0,0.04320142]
[1764074150224,0.04162,87523.0,87522.0,0.00017142]
[1764074150421,0.04162,87523.0,87522.0,0.02168142]
[1764074150626,0.04162,87523.0,87522.0,0.04320142]
[1764074153333,0.04162,87523.0,87522.0,0.0842548]
[1764074153633,0.04162,87523.0,87522.0,0.04320142]
[1764074158241,0.04162,87523.0,87522.0,0.08429751]
[1764074158441,0.04162,87523.0,87522.0,0.04320142]
[1764074168348,0.04162,87523.0,87522.0,0.08430452]
[1764074169645,0.05320987,87535.0,87534.0,0.0434]
[1764074169945,0.04395,87533.0,87532.0,0.00612]
[1764074170141,0.04395,87532.0,87531.0,0.0434]
[1764074170949,0.54395,87532.0,87531.0,0.0434]
[1764074175750,0.5,87532.0,87531.0,0.08452888]
[1764074175939,0.5,87532.0,87531.0,0.0434]
[1764074176343,0.465,87532.0,87531.0,0.0434]
[1764074176942,0.04370142,87539.0,87538.0,0.04633]
[1764074177456,0.05512872,87539.0,87538.0,0.04633]
[1764074178050,0.04370142,87539.0,87538.0,0.04633]
[1764074184855,0.04370142,87539.0,87538.0,0.0577575]
[1764074185354,0.04370142,87539.0,87538.0,0.0987823]
[1764074185952,0.04370142,87539.0,87538.0,0.0873548]
[1764074187553,0.04370142,87539.0,87538.0,0.0987823]
[1764074188362,0.04370142,87539.0,87538.0,0.04633]
[1764074188652,0.04370142,87539.0,87538.0,0.08734926]
[1764074190956,0.04370142,87539.0,87538.0,0.04633]
[1764074191151,0.02220142,87539.0,87538.0,0.04633]
[1764074191558,0.00017142,87539.0,87538.0,0.04633]
[1764074191954,0.02220142,87539.0,87538.0,0.04633]
[1764074192154,0.00017142,87539.0,87538.0,0.04633]
[1764074192356,0.02220142,87539.0,87538.0,0.04633]
[1764074192554,0.04370142,87539.0,87538.0,0.04633]
[1764074193562,0.00017142,87539.0,87538.0,0.04633]
[1764074193952,0.02220142,87539.0,87538.0,0.04633]
[1764074194158,0.04370142,87539.0,87538.0,0.04633]
[1764074196459,0.04353,87537.0,87536.0,0.04101926]
[1764074196665,0.04353,87526.0,87525.0,0.06416926]
[1764074196860,0.0549592,87525.0,87523.0,0.04101926]
[1764074197053,0.04353,87523.0,87521.0,0.04101926]
[1764074197260,0.04353,87523.0,87522.0,0.02332142]
[1764074198865,0.04353,87523.0,87522.0,0.04650142]
[1764074205174,0.0549594,87523.0,87522.0,0.04650142]
[1764074206070,0.04353,87523.0,87522.0,0.05793092]
[1764074206371,0.04571,87532.0,87531.0,0.0559984]
[1764074206676,0.04588142,87539.0,87538.0,0.0559975]
[1764074207768,0.02312142,87539.0,87538.0,0.0559975]
[1764074207968,0.00017142,87539.0,87538.0,0.0559975]
[1764074208878,0.02312142,87539.0,87538.0,0.0559975]
[1764074209274,0.04588142,87539.0,87538.0,0.0559975]
[1764074209675,0.04588142,87539.0,87538.0,0.04457]
[1764074212978,0.04588142,87539.0,87538.0,0.08559646]
[1764074213677,0.04588142,87539.0,87538.0,0.04457]
[1764074216679,0.02312142,87539.0,87538.0,0.04457]
[1764074216872,0.04588142,87539.0,87538.0,0.04457]
[1764074220286,0.04588142,87539.0,87538.0,0.08559333]
[1764074220479,0.04588142,87539.0,87538.0,0.04102333]
[1764074220784,0.0573982,87532.0,87531.0,0.04102333]
[1764074220987,0.04597,87527.0,87526.0,0.10631151]
[1764074221180,0.04597,87527.0,87526.0,0.0447]
[1764074221380,0.0573989,87527.0,87526.0,0.0447]
[1764074221576,0.04597,87525.0,87524.0,0.06161151]
[1764074221782,0.04597,87523.0,87522.0,0.08441293]
[1764074222091,0.04597,87523.0,87522.0,0.02280142]
[1764074222285,0.04597,87523.0,87522.0,0.04487142]
[1764074224182,0.04597,87523.0,87522.0,0.10648293]
[1764074225091,0.04597,87523.0,87522.0,0.04487142]
[1764074225292,0.04597,87523.0,87522.0,0.10644569]
[1764074225592,0.04597,87523.0,87522.0,0.04487142]
[1764074226990,0.01291,87545.0,87525.0,0.00697]
[1764074227191,0.04597,87538.0,87537.0,0.0447]
[1764074230498,0.04597,87533.0,87532.0,0.08575542]
[1764074230691,0.04597,87533.0,87532.0,0.0447]
[1764074231088,0.04597,87533.0,87532.0,0.02263]
[1764074231392,0.04284,87527.0,87526.0,0.04512]
[1764074231593,0.04284,87527.0,87526.0,0.10672915]
[1764074232307,0.04284,87527.0,87526.0,0.04512]
[1764074235297,0.0542694,87523.0,87522.0,0.04529142]
[1764074236096,0.0542694,87523.0,87522.0,0.00017142]
[1764074236805,0.04284,87523.0,87522.0,0.02256142]
[1764074237907,0.04284,87523.0,87522.0,0.04529142]
[1764074247609,0.04284,87523.0,87522.0,0.05672092]
[1764074248119,0.04284,87523.0,87522.0,0.04529142]
[1764074249714,0.04284,87523.0,87522.0,0.05672092]
[1764074250117,0.04284,87523.0,87522.0,0.1183636]
[1764074250716,0.04284,87523.0,87522.0,0.05672092]
[1764074250908,0.02177,87523.0,87522.0,0.05672092]
[1764074251513,0.04284,87523.0,87522.0,0.04529142]
[1764074254010,0.0542694,87523.0,87522.0,0.00017142]
[1764074254214,0.8642694,87523.0,87522.0,0.00017142]
[1764074254409,0.4942694,87523.0,87522.0,0.00017142]
[1764074254613,0.4942694,87523.0,87506.0,0.08219339]
[1764074254614,0.0542702,87517.0,87516.0,0.06170323]
[1764074255317,0.04284,87516.0,87515.0,0.06170323]
[1764074256316,0.04284,87516.0,87515.0,0.10682323]
[1764074257115,0.04284,87516.0,87515.0,0.11825373]
[1764074257316,0.04284,87516.0,87515.0,0.10682323]
[1764074260715,0.02177,87516.0,87515.0,0.04512]
[1764074261221,0.04284,87516.0,87515.0,0.04512]
[1764074263425,0.04487142,87524.0,87523.0,0.04524]
[1764074263730,0.04487142,87524.0,87523.0,0.08634586]
[1764074264321,0.05630072,87524.0,87523.0,0.08634586]
[1764074264529,0.05630072,87524.0,87523.0,0.04524]
[1764074264823,0.55630072,87524.0,87523.0,0.04524]
[1764074270225,0.0447,87523.0,87522.0,0.0616588]
[1764074271424,0.5447,87523.0,87522.0,0.0616588]
[1764074272434,0.5447,87523.0,87510.0,0.09659306]
[1764074272435,0.0561295,87522.0,87521.0,0.0616588]
[1764074273240,0.0691105,87515.0,87514.0,0.0566706]
[1764074273829,0.05768,87515.0,87514.0,0.0566706]
[1764074274526,0.05768,87515.0,87514.0,0.04524]
[1764074274923,0.05768,87515.0,87514.0,0.02303]
[1764074275329,0.05768,87515.0,87514.0,0.04524]
[1764074276238,0.0447,87511.0,87510.0,0.10522339]
[1764074276532,0.056131,87511.0,87510.0,0.12743339]
[1764074277237,0.056131,87511.0,87510.0,0.04524]
[1764074280544,0.0550815,87507.0,87506.0,0.12726339]
[1764074280739,0.04365,87502.0,87500.0,0.08219339]
[1764074280946,0.04365,87498.0,87497.0,0.08219339]
[1764074281151,0.04365,87496.0,87495.0,0.02219]
[1764074281344,0.04365,87496.0,87495.0,0.04507]
[1764074283149,0.05706,87485.0,87484.0,0.10438339]
[1764074283340,0.05706,87485.0,87484.0,0.08384724]
[1764074283541,0.04365,87476.0,87475.0,0.04507]
[1764074283747,0.0550856,87476.0,87475.0,0.04507]
[1764074285845,0.0550856,87476.0,87474.0,0.06157774]
[1764074286041,0.0550856,87476.0,87473.0,0.18008]
[1764074286042,0.04365,87474.0,87473.0,0.18008]
[1764074286244,0.49365,87474.0,87473.0,0.18008]
[1764074286448,0.063657,87465.0,87459.0,0.06157774]
[1764074286751,0.063657,87465.0,87464.0,0.07592536]
[1764074287054,0.133657,87465.0,87464.0,0.07592536]
[1764074287354,0.483657,87465.0,87464.0,0.04515271]
[1764074288048,0.483657,87465.0,87464.0,8.271e-05]
[1764074288843,0.553657,87465.0,87464.0,8.271e-05]
[1764074289149,1.053657,87465.0,87464.0,8.271e-05]
[1764074289453,0.01028,87446.0,87445.0,0.05832]
[1764074289842,0.00514,87446.0,87445.0,0.05832]
[1764074290248,0.00522,87446.0,87445.0,0.05832]
[1764074290448,8e-05,87446.0,87445.0,0.05832]
[1764074290953,0.00017152,87454.0,87453.0,0.04507]
[1764074292644,1.52e-06,87454.0,87453.0,0.04507]
[1764074293047,0.0222166,87468.0,87467.0,0.04493]
[1764074294247,0.51078,87468.0,87467.0,0.04493]
[1764074297842,0.465,87468.0,87467.0,0.04493]
[1764074298343,0.35055527,87468.0,87467.0,0.04493]
[1764074298552,0.21055527,87468.0,87467.0,0.50650774]
[1764074298851,0.21055527,87468.0,87467.0,0.44493]
[1764074299046,0.01296,87492.0,87467.0,0.44493]
[1764074299047,0.03496,87492.0,87491.0,0.0114336]
[1764074299241,0.05652,87492.0,87491.0,0.18024]
[1764074303656,0.04356,87484.0,87483.0,0.00017152]
[1764074303960,0.04356,87484.0,87483.0,0.18041152]
[1764074305355,0.04356,87484.0,87483.0,0.19184612]
[1764074307458,0.03496,87486.0,87483.0,0.19184612]
[1764074307647,0.01296,87486.0,87483.0,0.19184612]
[1764074308357,0.03496,87486.0,87483.0,0.19184612]
[1764074309557,0.05652,87486.0,87483.0,0.19184612]
[1764074309754,0.04356,87484.0,87483.0,0.18041152]
[1764074310057,0.04356,87484.0,87483.0,0.18037152]
[1764074310257,0.04356,87484.0,87483.0,0.00017152]
[1764074310458,0.04356,87484.0,87483.0,0.18037152]
[1764074311364,0.04356,87484.0,87483.0,0.19180612]
[1764074312663,0.01296,87486.0,87483.0,0.19180612]
[1764074312958,0.03496,87486.0,87483.0,0.19180612]
[1764074313156,0.05652,87486.0,87483.0,0.19180612]
[1764074313356,0.022,87484.0,87483.0,0.19180612]
[1764074313755,0.04356,87484.0,87483.0,0.19180612]
[1764074314755,0.01296,87486.0,87483.0,0.19180612]
[1764074319266,0.01296,87486.0,87483.0,0.25303415]
[1764074319555,0.01296,87486.0,87483.0,0.19180612]
[1764074319870,0.03496,87486.0,87483.0,0.19180612]
[1764074320371,0.03496,87486.0,87483.0,0.25303415]
[1764074321066,0.05652,87486.0,87483.0,0.19180612]
[1764074321372,0.05652,87486.0,87485.0,0.0114344]
[1764074322669,0.01296,87492.0,87491.0,0.0114336]
[1764074322871,0.01167,87498.0,87491.0,0.0114336]
[1764074322872,0.01167,87498.0,87497.0,0.0114328]
[1764074323172,0.05585,87498.0,87497.0,0.0114328]
[1764074324563,0.05585,87498.0,87497.0,0.07293199]
[1764074325170,0.01167,87498.0,87497.0,0.0114328]
[1764074325378,0.01365,87498.0,87497.0,0.0114328]
[1764074326878,0.05783,87498.0,87497.0,0.0114328]
[1764074328381,0.03667,87498.0,87497.0,0.0114328]
[1764074329080,0.01365,87498.0,87497.0,0.0114328]
[1764074329970,0.04418,87500.0,87498.0,0.0114327]
[1764074330979,0.04418,87500.0,87498.0,0.0730113]
[1764074331979,0.04418,87500.0,87499.0,0.0615786]
[1764074332380,0.04418,87500.0,87498.0,0.0730113]
[1764074332881,0.01365,87504.0,87498.0,0.0730113]
[1764074332882,0.04418,87499.0,87498.0,0.0730113]
[1764074333583,0.04418,87499.0,87498.0,0.0114327]
[1764074334082,0.04418,87499.0,87498.0,0.0730113]
[1764074334282,0.04418,87499.0,87498.0,0.0114327]
[1764074334484,0.04418,87499.0,87498.0,0.0730113]
[1764074335179,0.02302,87499.0,87498.0,0.0730113]
[1764074335382,0.05783,87504.0,87503.0,0.011432]
[1764074340183,0.05783,87504.0,87500.0,0.0615786]
[1764074340380,0.0587,87501.0,87499.0,0.0615786]
[1764074340577,0.0587,87501.0,87500.0,0.0114324]
[1764074341790,0.02277,87500.0,87497.0,0.0114327]
[1764074341981,0.07356,87498.0,87497.0,0.0114327]
[1764074342285,0.07356,87498.0,87495.0,0.011433]
[1764074342590,0.07356,87496.0,87495.0,0.011433]
[1764074342789,0.07356,87496.0,87495.0,0.191553]
[1764074345892,0.02277,87500.0,87499.0,0.0114326]
[1764074346186,0.02277,87500.0,87499.0,0.1915526]
[1764074346388,0.09633,87500.0,87499.0,0.1915526]
[1764074349488,0.09633,87500.0,87499.0,0.0114326]
[1764074349690,0.09633,87500.0,87499.0,0.1915526]
[1764074352703,0.07252,87498.0,87497.0,0.08219339]
[1764074352897,0.07111,87498.0,87497.0,0.1915528]
[1764074357811,0.07111,87498.0,87497.0,0.18012]
[1764074358211,0.07111,87498.0,87497.0,0.26244199]
[1764074360509,0.07111,87498.0,87497.0,0.1915528]
[1764074360715,0.07111,87491.0,87490.0,0.09659705]
[1764074360909,0.07111,87488.0,87487.0,0.11328817]
[1764074361108,0.07111,87488.0,87487.0,0.25560817]
[1764074361418,0.07111,87488.0,87487.0,0.1537541]
[1764074362517,0.07111,87488.0,87487.0,0.0114341]
[1764074362719,0.07111,87488.0,87487.0,0.1915541]
[1764074363418,0.07111,87488.0,87487.0,0.29340817]
[1764074364219,0.07111,87488.0,87487.0,0.1915541]
[1764074365722,0.07111,87488.0,87487.0,0.29340817]
[1764074367411,0.0114276,87537.0,87487.0,0.29340817]
[1764074367617,0.03647,87492.0,87491.0,0.07455]
[1764074367816,0.02251,87505.0,87490.0,0.02226]
[1764074367817,0.07111,87509.0,87508.0,0.0859814]
[1764074368019,0.02251,87515.0,87503.0,0.08230899]
[1764074368020,0.07111,87504.0,87503.0,0.08230899]
[1764074368215,0.07111,87498.0,87497.0,0.08230899]